[Event "Baku Open 2024"]
[Site "Baku"]
[Date "2024.07.02"]
[Round "4.23"]
[White "Fataliyeva, Ulviyya"]
[Black "Bharadia Yash"]
[Result "0-1"]
[ECO "B51"]
[WhiteElo "2399"]
[BlackElo "2100"]
[Annotator "TA"]
[PlyCount "100"]
[EventDate "2024.06.29"]
[EventType "swiss"]
[EventCountry "AZE"]
[SourceTitle "playchess.com"]
[Source "ChessBase"]
[SourceQuality "1"]
[TimeControl "5400+30"]

{[%evp 9,100,10,21,17,25,16,15,11,14,0,14,10,16,26,20,12,11,6,2,-1,24,23,28,26,26,4,59,-6,42,43,51,30,36,15,20,0,0,-22,48,46,88,91,106,95,91,32,54,44,47,25,31,17,33,43,151,0,6,0,4,0,0,0,0,-25,0,0,36,0,0,-8,-14,-3,-13,-29,-10,-216,-212,-214,-205,-254,-252,-360,-339,-515,-488,-654,-654,-659,-672,-708,-716,-958,-933]} 1. e4 {[%emt 0:00:04]} c5 {[%emt 0:00:05]} 2. Nf3 {[%emt 0:00:04]} d6 {[%emt 0:00:06]} 3. Bb5+ {[%emt 0:00:04]} Nd7 {[%emt 0:00:05]} 4. O-O {[%emt 0:00:05]} a6 {[%emt 0:00:02]} 5. Bd3 {[%emt 0:00:09]} Ngf6 {[%emt 0:00:05]} 6. c3 {[%emt 0:00:08]} b5 {[%emt 0:01:39][%cal Bb7b5,Bb5b4][%mdl 32]} 7. a4 {[%emt 0:00:12]} b4 {[%emt 0:07:45]} 8. a5 {[%emt 0:02:30] The position is equal.} Bb7 {[%emt 0:00:53]} 9. Re1 {[%emt 0:00:16]} Qc7 {[%emt 0:00:44]} 10. Bc2 {[%emt 0:01:45]} Rc8 {[%emt 0:04:23]} 11. d3 {[%emt 0:01:01]} bxc3 {[%emt 0:04:49]} 12. bxc3 {[%emt 0:05:41]} g6 {[%emt 0:01:10][%cal Bg7g6,Bg6g5][%mdl 32]} 13. Bf4 {[%emt 0:03:50]} Nh5 {[%emt 0:11:37]} 14. Bg5 {[%emt 0:02:06]} h6 {[%emt 0:01:43]} 15. Bd2 {[%emt 0:02:12]} Bg7 {[%emt 0:00:12]} 16. Qc1 {[%emt 0:06:02]} g5 {[%emt 0:01:25]} 17. h3 {[%emt 0:09:54]} Nhf6 {[%emt 0:16:17]} (17... d5 $11) 18. Nh2 {[%emt 0:05:28]} (18. Na3 $14) 18... Nh7 {[%emt 0:07:32]} (18... Ne5 $11) 19. Nf1 {[%emt 0:01:06][%cal Bh2f1,Bf1g3,Bg3h5][%mdl 32]} Nhf8 {[%emt 0:02:03]} 20. Ng3 {[%emt 0:01:41]} Ng6 {[%emt 0:00:12]} 21. Nh5 {[%emt 0:05:10]} Be5 {[%emt 0:02:11]} 22. Bb3 {[%emt 0:01:44]} Nf6 {[%emt 0:00:59]} 23. Qd1 {[%emt 0:03:06]} e6 {[%emt 0:02:04]} ({Black should play} 23... Rd8 $11) 24. Na3 $14 {[%emt 0:04:32]} Qe7 {[%emt 0:13:42]} 25. Nc4 {[%emt 0:03:05]} Nxh5 {[%emt 0:00:09]} 26. Qxh5 {[%emt 0:00:20]} Bf4 {[%emt 0:00:47]} 27. Be3 {[%emt 0:02:28]} (27. Ne3 $16) 27... Bxe3 {[%emt 0:03:00]} 28. fxe3 {[%emt 0:00:11] And now Rf1 would win.} Kf8 $1 {[%emt 0:00:16]} 29. Rf1 {[%emt 0:02:58]} Kg7 {[%emt 0:00:37]} 30. Rf2 {[%emt 0:01:09]} Rhf8 {[%emt 0:04:30]} 31. Raf1 {[%emt 0:01:08][%cal Of2f6] Threatens to win with Rf6!} Bc6 {[%emt 0:08:48]} (31... f6 $14) 32. Nd2 $2 {[%emt 0:08:31] [#]} ({White must play} 32. Rf6 $1 $16 {[%cal Oe4e5] Black must now prevent e5!} Rcd8 33. e5) 32... Rb8 {[%emt 0:00:38]} 33. Qd1 {[%emt 0:02:17]} f5 {[%emt 0:01:14]} 34. exf5 {[%emt 0:10:03]} (34. Bxe6 {seems wilder.} Qxe6 35. exf5 Qxe3 36. Nc4) 34... exf5 {[%emt 0:00:07]} 35. e4 {[%emt 0:05:10]} Nf4 {[%emt 0:00:25] Active counter play!} 36. Bc4 {[%emt 0:04:03]} fxe4 {[%emt 0:01:04]} 37. dxe4 {[%emt 0:00:09]} Qe5 {[%emt 0:03:06]} 38. Bxa6 {[%emt 0:01:37]} Qxc3 {[%emt 0:00:37]} 39. Qa1 {[%emt 0:01:54]} Qxa1 {[%emt 0:00:52]} 40. Rxa1 {[%emt 0:00:01]} Rb2 {[%emt 0:00:38][%cal Of4h3]} 41. Kh2 {[%emt 0:02:39]} Rfb8 {[%emt 0:01:45]} 42. Raf1 $2 {[%emt 0:00:22] [#] This move loses the game for White.} (42. Bc4 $11 {and White is okay.}) 42... Ra8 $1 $19 {[%emt 0:00:32]} 43. Bc4 {[%emt 0:00:12]} Rxa5 {[%emt 0:00:23]} 44. g3 {[%emt 0:03:52]} Ng6 {[%emt 0:00:01]} 45. Rf7+ {[%emt 0:00:01]} (45. Bd5 $142 Bxd5 46. exd5) 45... Kh8 {[%emt 0:00:06]} 46. R1f2 {[%emt 0:00:05]} (46. R7f2 {was the only chance.}) 46... Ne5 {[%emt 0:00:53] Black is clearly winning.} 47. R7f6 {[%emt 0:01:19]} Kg7 {[%emt 0:01:01]} 48. Nb3 {[%emt 0:01:34]} Raa2 {[%emt 0:00:31]} ({Not} 48... Nxc4 49. Rf7+ Kg8 50. Rf8+ Kg7 51. R8f7+ Kg8 52. Rf8+ Kg7 53. R8f7+ $11) 49. Nd2 {[%emt 0:00:14]} Ra4 {[%emt 0:00:31] ...Rxd2 is the strong threat.} ({And not} 49... Nxc4 50. Rf7+ Kg8 51. Rf8+ Kh7 52. R2f7+ Kg6 53. Rf6+ Kg7 54. R8f7+ Kg8 55. Rf8+ Kg7 56. R6f7+ Kg6 57. Rf6+ Kg7 $11) 50. Bb3 {[%emt 0:00:33]} Rd4 {[%emt 0:00:35] Weighted Error Value: White=0.46/Black=0.14 (very precise) .  Loses game:     	White=1     	---        Mistake:       	White=5     	Black=4      Inaccurate:     	White=2     	Black=2      OK:         	White=10    	Black=17     Best:        	---       	Black=2      Strong:       	---       	Black=2} 0-1

[Event "Baku Open 2024"]
[Site "Baku"]
[Date "2024.07.02"]
[Round "4.24"]
[White "Soham Kamotra"]
[Black "Kaldarova, Ayaulym"]
[Result "1-0"]
[ECO "E06"]
[WhiteElo "2388"]
[BlackElo "2100"]
[Annotator "RC"]
[PlyCount "85"]
[EventDate "2024.06.29"]
[EventType "swiss"]
[EventCountry "AZE"]
[SourceTitle "playchess.com"]
[Source "ChessBase"]
[SourceQuality "1"]
[TimeControl "5400+30"]

1. g3 {[%emt 0:00:12]} d5 {[%emt 0:00:15]} 2. Nf3 {[%emt 0:00:09]} Nf6 {[%emt 0:04:05]} 3. c4 {[%emt 0:00:09]} e6 {[%emt 0:01:59]} 4. Bg2 {[%emt 0:00:06]} Be7 {[%emt 0:00:17]} 5. O-O {[%emt 0:00:07]} O-O {[%emt 0:00:05]} 6. b3 {[%emt 0:00:39]} b6 {[%emt 0:02:25]} 7. d4 {[%emt 0:00:39]} c6 {[%emt 0:01:34]} 8. Nc3 {[%emt 0:01:40]} Ba6 {[%emt 0:00:52]} 9. Nd2 {[%emt 0:00:19]} Nbd7 {[%emt 0:04:17]} 10. e4 {[%emt 0:04:38]} dxe4 {[%emt 0:07:28]} 11. Ndxe4 {[%emt 0:00:06]} Rc8 {[%emt 0:00:19]} 12. Re1 {[%emt 0:15:07]} Re8 {[%emt 0:08:58]} 13. Ng5 {[%emt 0:07:33]} Nf8 {[%emt 0:12:24]} 14. Bb2 {[%emt 0:03:30]} Qc7 {[%emt 0:09:09]} 15. Qc2 {[%emt 0:02:15]} c5 {[%emt 0:08:40]} 16. d5 {[%emt 0:10:20]} exd5 {[%emt 0:00:28]} 17. Bxd5 {[%emt 0:03:46]} Nxd5 {[%emt 0:13:18]} 18. Nxd5 {[%emt 0:00:12]} Qd6 {[%emt 0:01:00]} 19. Qc3 {[%emt 0:06:06]} Bf6 {[%emt 0:01:29]} 20. Nxf6+ {[%emt 0:01:21]} Qxf6 {[%emt 0:00:12]} 21. Qxf6 {[%emt 0:00:05]} gxf6 {[%emt 0:00:05]} 22. Bxf6 {[%emt 0:00:06]} Bb7 {[%emt 0:00:29]} 23. f3 {[%emt 0:09:49]} Nd7 {[%emt 0:09:06]} 24. Bc3 {[%emt 0:00:16]} h6 {[%emt 0:00:33]} 25. Ne4 {[%emt 0:00:08]} Bxe4 {[%emt 0:01:24]} 26. Rxe4 {[%emt 0:01:03]} Rxe4 {[%emt 0:00:08]} 27. fxe4 {[%emt 0:00:04]} Re8 {[%emt 0:00:13]} 28. Rd1 {[%emt 0:00:34]} Ne5 {[%emt 0:01:05]} 29. Kg2 {[%emt 0:00:34]} Ng4 {[%emt 0:02:53]} 30. Kf3 {[%emt 0:02:52]} Ne5+ {[%emt 0:04:39]} 31. Bxe5 {[%emt 0:01:18]} Rxe5 {[%emt 0:00:07]} 32. Rd7 {[%emt 0:00:03]} f5 {[%emt 0:00:57]} 33. exf5 {[%emt 0:00:31]} Rxf5+ {[%emt 0:00:05]} 34. Kg2 {[%emt 0:00:11]} a5 {[%emt 0:02:31]} 35. Rd6 {[%emt 0:00:11]} Re5 {[%emt 0:00:10]} 36. Rxh6 {[%emt 0:00:34]} Re2+ {[%emt 0:00:06]} 37. Kh3 {[%emt 0:00:06]} Rxa2 {[%emt 0:00:39]} 38. Rxb6 {[%emt 0:00:17]} a4 {[%emt 0:00:29]} 39. bxa4 {[%emt 0:00:11]} Rxa4 {[%emt 0:00:05]} 40. Rg6+ {[%emt 0:00:04]} Kf7 {[%emt 0:00:11]} 41. Rg4 {[%emt 0:00:04]} Ra2 {[%emt 0:00:21]} 42. Rg5 {[%emt 0:00:09]} Ra5 {[%emt 0:00:07]} 43. Rd5 {[%emt 0:00:04]} 1-0

[Event "Baku Open 2024"]
[Site "Baku"]
[Date "2024.07.02"]
[Round "4.25"]
[White "Balajayeva, Khanim"]
[Black "Israilov, Agil"]
[Result "0-1"]
[ECO "B10"]
[WhiteElo "2385"]
[BlackElo "2141"]
[Annotator "TA"]
[PlyCount "70"]
[EventDate "2024.06.29"]
[EventType "swiss"]
[EventCountry "AZE"]
[SourceTitle "playchess.com"]
[Source "ChessBase"]
[SourceQuality "1"]
[TimeControl "5400+30"]

{[%evp 9,70,11,45,16,27,27,25,24,17,25,36,26,37,8,20,-24,-30,-25,-22,-340,-347,-368,-347,-349,-252,-291,-268,-352,-239,-251,-242,-235,-179,-227,-207,-410,-386,-370,-390,-631,-530,-1297,-1283,-1433,-1400,-1797,-1755,-2614,-854,-875,-889,-2577,-1272,-1272,-1269,-1221,-1221,-29960,-29963,-29962,-29963,-5297,-5297]} 1. e4 {[%emt 0:00:04]} c6 {[%emt 0:00:06]} 2. Nf3 {[%emt 0:00:09]} d5 {[%emt 0:00:06]} 3. d3 {[%emt 0:00:03]} g6 {[%emt 0:00:06]} 4. e5 {[%emt 0:00:10]} Bg7 {[%emt 0:00:09]} 5. d4 {[%emt 0:00:13]} Bf5 {[%emt 0:03:27]} 6. Be2 {[%emt 0:02:19]} f6 {[%emt 0:01:44]} 7. exf6 {[%emt 0:00:38]} Nxf6 {[%emt 0:00:09]} 8. O-O {[%emt 0:01:32] White has an edge.} O-O {[%emt 0:00:10]} 9. c4 {[%emt 0:00:56][%cal Bc2c4,Bc4c5][%mdl 32]} Nbd7 {[%emt 0:02:45]} 10. Nc3 {[%emt 0:01:51]} Nb6 {[%emt 0:03:01]} 11. c5 {[%emt 0:11:32]} Nbd7 {[%emt 0:00:12]} 12. h3 {[%emt 0:01:54]} Qc7 {[%emt 0:02:24]} 13. Re1 {[%emt 0:18:27]} Rae8 {[%emt 0:00:32]} 14. g4 $2 {[%emt 0:02:05][%mdl 8192] [#] Now White is beyond hope.} (14. Bf1 $11) 14... Bxg4 $1 $19 {[%emt 0:05:07][%mdl 512]} 15. hxg4 {[%emt 0:05:46]} Nxg4 {[%emt 0:00:20][%cal Of8f3]} 16. Qd2 {[%emt 0:03:57]} e5 {[%emt 0:38:14]} 17. Qg5 {[%emt 0:19:27] [#]} e4 $1 {[%emt 0:00:18]} 18. Ne5 {[%emt 0:00:02]} Ngxe5 {[%emt 0:03:20]} 19. dxe5 {[%emt 0:00:08]} Nxe5 {[%emt 0:00:37][%cal Of8f2]} ({Much less strong is} 19... Bxe5 20. Qg2 $19) 20. Qg3 {[%emt 0:02:42]} Rf7 {[%emt 0:02:47][%mdl 1024] Black has strong compensation.} ({Resist} 20... Qf7 21. Be3) 21. Kg2 {[%emt 0:02:41]} (21. Be3 {keeps fighting.}) 21... Ref8 {[%emt 0:01:12]} 22. Rf1 {[%emt 0:02:20]} (22. Be3 {is the only way for White.}) 22... Qe7 {[%emt 0:01:33][%cal Oe5f3]} 23. Be3 {[%emt 0:01:31]} Rf5 {[%emt 0:05:24] Threatens to win with ...Nf3.} 24. Rfd1 $2 {[%emt 0:05:33]} (24. Rh1 d4 25. Nxe4 (25. Bxd4 $2 {is the wrong capture.} Rg5 $19) 25... dxe3 26. Qxe3) 24... Nf3 {[%emt 0:01:46] aiming for ...Be5.} 25. Bxf3 {[%emt 0:02:19]} exf3+ {[%emt 0:00:10]} 26. Kf1 {[%emt 0:00:09]} Rh5 {[%emt 0:00:11]} 27. Qg1 {[%emt 0:00:52] Against Rh1} Qh4 {[%emt 0:00:18] ( -> ...Bxc3)} 28. Qg3 {[%emt 0:06:35]} d4 {[%emt 0:00:24]} (28... Qh1+ $142 29. Qg1 Re8) 29. Qxh4 {[%emt 0:06:00]} Rxh4 {[%emt 0:00:04]} 30. Kg1 {[%emt 0:00:01] Against Rh1+} dxe3 {[%emt 0:00:13]} (30... Rf5 $142 31. Ne4 Rxe4 (31... dxe3 $2 32. Rd8+ Rf8 33. Rxf8+ Kxf8 34. fxe3 $19)) 31. fxe3 {[%emt 0:00:05]} f2+ {[%emt 0:00:44]} 32. Kf1 {[%emt 0:00:56]} Bxc3 {[%emt 0:00:07]} 33. bxc3 {[%emt 0:00:02]} Rh1+ {[%emt 0:00:04]} 34. Kg2 {[%emt 0:00:34]} Rxd1 {[%emt 0:00:05]} 35. Rxd1 {[%emt 0:00:01] [#]} f1=Q+ $1 {[%emt 0:00:07] Weighted Error Value: White=1.46/Black=0.42.  Loses game:     	White=1     	---        Mistake:       	White=3     	---        Inaccurate:     	White=4     	Black=1      OK:         	White=4     	Black=5      Best:        	---       	Black=1      Strong:       	---       	Black=1      Brilliant:      	---       	Black=1} 0-1

[Event "Baku Open 2024"]
[Site "Baku"]
[Date "2024.07.02"]
[Round "4.26"]
[White "Bayramov, Zaur"]
[Black "Talibov, Shiroghlan"]
[Result "1/2-1/2"]
[ECO "A22"]
[WhiteElo "2249"]
[BlackElo "2361"]
[Annotator "TA"]
[PlyCount "80"]
[EventDate "2024.06.29"]
[EventType "swiss"]
[EventCountry "AZE"]
[SourceTitle "playchess.com"]
[Source "ChessBase"]
[SourceQuality "1"]
[TimeControl "5400+30"]

{[%evp 9,80,-1,-2,-11,0,0,14,0,0,-40,17,16,23,27,26,8,26,0,10,0,0,0,31,-6,-8,-38,-22,-21,-20,-21,-37,-35,-44,-50,-50,-54,0,0,0,0,0,0,0,0,0,0,0,0,0,0,0,0,839,0,976,654,29986,375,302,316,266,154,129,105,88,0,0,0,107,0,0,0,82]} 1. c4 {[%emt 0:00:02]} Nf6 {[%emt 0:00:12]} 2. Nc3 {[%emt 0:00:12]} e5 {[%emt 0:00:06]} 3. g3 {[%emt 0:00:21]} Bb4 {[%emt 0:00:05]} 4. Bg2 {[%emt 0:00:17]} O-O {[%emt 0:00:36]} 5. d3 {[%emt 0:00:36]} Re8 {[%emt 0:01:02]} 6. e4 {[%emt 0:04:53]} c6 {[%emt 0:00:49][%cal Bc7c6,Bc6d5,Bd5d4][%mdl 32]} 7. Nge2 {[%emt 0:00:24]} d5 {[%emt 0:01:01]} 8. exd5 {[%emt 0:01:30]} cxd5 {[%emt 0:00:06]} 9. O-O {[%emt 0:00:25]} Bxc3 {[%emt 0:10:22]} (9... d4 $15 10. a3 Bf8) 10. Nxc3 $11 {[%emt 0:00:32]} d4 {[%emt 1:21:11]} 11. Nd5 {[%emt 0:01:32]} Nxd5 {[%emt 0:00:00]} 12. Bxd5 {[%emt 0:00:12]} Nc6 {[%emt 0:00:00]} 13. a3 {[%emt 0:01:35] Wards off Nb4} (13. Qh5 {looks sharper.} Qd7 14. Rd1 Qf5 15. Qxf5 Bxf5 16. b3) 13... a5 {[%emt 0:00:00]} 14. Rb1 {[%emt 0:02:37]} Be6 {[%emt 0:00:00]} 15. Bg2 {[%emt 0:03:30]} Bf5 {[%emt 0:00:00]} 16. Re1 {[%emt 0:01:06]} Qd6 {[%emt 0:00:00]} 17. Qb3 {[%emt 0:15:09]} Rac8 {[%emt 0:00:00][%cal Oa5a4]} 18. Bd2 {[%emt 0:06:11] [#]} b6 $1 {[%emt 0:00:00]} 19. Qxb6 {[%emt 0:06:58][%cal Ob2b4]} (19. Bd5 Ne7) 19... Bxd3 {[%emt 0:00:00]} 20. Rbc1 {[%emt 0:00:13][%cal Ob2b4]} e4 {[%emt 0:00:00] White must now prevent ...Rb8.} 21. Bf4 {[%emt 0:05:04]} Qf6 {[%emt 0:00:00] Hoping for ...g5.} 22. Bh3 {[%emt 0:20:29] [#]} g5 $1 {[%emt 0:00:00]} 23. Bxc8 {[%emt 0:03:13]} Rxc8 {[%emt 0:00:00]} (23... gxf4 $6 24. Bd7 fxg3 25. fxg3 $16 (25. Bxe8 $2 gxf2+ 26. Kh1 Qf3#)) 24. Qb7 $1 {[%emt 0:04:51]} Qe6 {[%emt 0:00:00]} 25. Bd6 {[%emt 0:00:39]} a4 {[%emt 0:00:00][%cal Og8g7]} 26. Rcd1 {[%emt 0:09:31]} Bxc4 {[%emt 0:00:00][%cal Oc4d5] ...Bd5! is the strong threat.} 27. Rxe4 $1 {[%emt 0:02:07]} Qxe4 {[%emt 0:00:00]} 28. Qxc8+ {[%emt 0:00:07]} Kg7 {[%emt 0:00:00] And now ...Bd5 would win.} 29. Qf8+ {[%emt 0:01:08]} Kg6 {[%emt 0:00:05] Threatens to win with ...Bd5.} 30. Qg8+ $1 {[%emt 0:04:51]} Kh5 $2 {[%emt 0:00:13][%mdl 8192] [#]} (30... Kf6 $11 31. Qh8+ Kg6) 31. Rf1 $2 {[%emt 0:03:50]} ({White must play} 31. h3 $1 $18 {[%mdl 512] White wants to mate with g4+.} h6 (31... Be6 32. Kh2) 32. Kh2 (32. Qg7 Qe6 $18)) 31... Qd3 $2 {[%emt 0:09:39][%mdl 8192]} (31... h6 $11 32. f3 Qe6) 32. Re1 {[%emt 0:00:46] Intending h3 and mate.} h6 {[%emt 0:00:30] [#]} 33. g4+ $1 {[%emt 0:01:31]} Kh4 $18 {[%emt 0:00:28][%cal Od3f3]} 34. Bg3+ {[%emt 0:00:24]} Kh3 {[%emt 0:00:12][%cal Od3f3]} 35. Qh8 {[%emt 0:00:31]} (35. Qf8 $1 $18 {[%cal Rf8h6]} Qg6 36. Qc5) 35... Qg6 $16 {[%emt 0:00:28]} 36. f3 {[%emt 0:00:33]} Bd5 {[%emt 0:00:33] [#]} 37. Kf2 {[%emt 0:00:37]} ({Better is} 37. f4 $1 $16 {[%cal Rf4f5]} Kxg4 (37... gxf4 $2 38. Bxf4 Kxg4 39. Qxh6 $18) 38. Qc8+ f5 39. fxg5 hxg5 40. Kf2 (40. Qd7 Qf7 $11)) 37... Bc4 $11 {[%emt 0:00:18]} 38. Kg1 {[%emt 0:00:28]} (38. Rc1 $11 Qe6 39. Re1) 38... Bd5 $16 {[%emt 0:00:11] [#]} 39. Kf2 {[%emt 0:00:29]} (39. f4 $1 $16 {[%cal Rf4f5] f5 would now be deadly.} Kxg4 (39... gxf4 $2 40. Bxf4 Kxg4 41. Qxh6 $18) 40. Qc8+ f5 41. fxg5 hxg5 42. Kf2 (42. Qd7 Qf7 $11)) 39... Bc4 $11 {[%emt 0:00:10] ( -> ...Qc2+)} 40. Kg1 {[%emt 0:00:12]} (40. Rc1 $11 Qe6 41. Re1 Qg6) 40... Bd5 {[%emt 0:00:31] Weighted Error Value: White=0.65/Black=0.24 (precise) .  Loses game:     	---       	Black=2      Missed win:     	White=1     	---        Mistake:       	White=5     	Black=2      Inaccurate:     	White=3     	Black=2      OK:         	White=10    	Black=12     Best:        	White=1     	Black=10     Strong:       	White=3     	---} 1/2-1/2

[Event "Baku Open 2024"]
[Site "Baku"]
[Date "2024.07.02"]
[Round "4.27"]
[White "Sherali Pattnaik"]
[Black "Galaktionov, Artem"]
[Result "0-1"]
[ECO "C11"]
[WhiteElo "1955"]
[BlackElo "2358"]
[Annotator "TA"]
[PlyCount "66"]
[EventDate "2024.06.29"]
[EventType "swiss"]
[EventCountry "AZE"]
[SourceTitle "playchess.com"]
[Source "ChessBase"]
[SourceQuality "1"]
[TimeControl "5400+30"]

{[%evp 18,65,62,64,52,48,52,51,71,79,109,87,114,122,109,104,143,97,127,103,126,107,111,118,128,88,69,0,33,10,51,-25,0,-125,-141,-98,-97,-876,-869,-3093,-3017,-2380,-2272,-29982,-953,-29990,-29991,-29998,-29999,-29999]} 1. e4 {[%emt 0:00:03]} e6 {[%emt 0:05:26]} 2. d4 {[%emt 0:00:23]} d5 {[%emt 0:00:02]} 3. Nc3 {[%emt 0:00:05]} Nf6 {[%emt 0:00:03]} 4. e5 {[%emt 0:03:19]} Nfd7 {[%emt 0:00:28]} 5. f4 {[%emt 0:00:05]} c5 {[%emt 0:00:02]} 6. Nf3 {[%emt 0:00:07]} Nc6 {[%emt 0:00:04]} 7. Be3 {[%emt 0:00:07]} a6 {[%emt 0:00:01]} 8. Qd2 {[%emt 0:04:57]} b5 {[%emt 0:01:13][%cal Bb7b5,Bb5b4,Bb4c3][%mdl 32]} 9. dxc5 {[%emt 0:00:37]} Nxc5 {[%emt 0:08:43]} 10. Qf2 {[%emt 0:02:36]} b4 {[%emt 0:00:20]} 11. Bxc5 {[%emt 0:05:03]} bxc3 {[%emt 0:01:37]} 12. b3 {[%emt 0:00:49]} Qa5 {[%emt 0:01:00] White is slightly better.} 13. Bxf8 {[%emt 0:00:35]} Rxf8 {[%emt 0:00:05]} 14. Be2 {[%emt 0:01:09]} f6 {[%emt 0:02:47]} 15. O-O {[%emt 0:06:06]} fxe5 {[%emt 0:03:34]} 16. fxe5 {[%emt 0:00:27]} Nxe5 {[%emt 0:16:23]} 17. Qd4 {[%emt 0:01:54] Inhibits Qb4.} (17. Kh1 $142) 17... Nc6 $16 {[%emt 0:01:28]} (17... Nxf3+ 18. Bxf3 (18. Rxf3 Rxf3 19. Bxf3 Qc7 $16) 18... Rf6 19. Rae1) 18. Qxg7 {[%emt 0:00:53][%cal Of3d4] [#] And now Nd4! would win.} Qc5+ {[%emt 0:00:25]} 19. Kh1 {[%emt 0:00:12]} Ra7 {[%emt 0:00:05]} 20. Qh6 {[%emt 0:00:59]} Raf7 {[%emt 0:04:18]} 21. Rfe1 {[%emt 0:01:58] Threatens to win with Ng5.} Qf2 {[%emt 0:21:59]} 22. Ng5 {[%emt 0:02:14][%csl LRe6,LRf7,LRh7]} Rf6 {[%emt 0:00:27]} 23. Qh5+ {[%emt 0:00:16]} (23. Qxh7 $2 Qxe2 24. Rg1 Kd8 $19) 23... Kd8 {[%emt 0:00:10]} 24. Nxh7 {[%emt 0:02:43]} (24. Rad1 $1 $14) 24... Rg8 $11 {[%emt 0:03:44]} 25. g3 {[%emt 0:01:03]} (25. Ng5 $11) 25... Rf5 $17 {[%emt 0:00:24] Really sharp!} 26. Qh4+ {[%emt 0:01:39]} Ne7 {[%emt 0:02:47] Black has more active pieces.} (26... Kc7 27. Bg4 Re5 28. Rxe5 Nxe5 29. Bh3 Qxc2 30. Qf4 $19) 27. Qb4 {[%emt 0:17:17][%mdl 8192] Dodges Bb7. White does not recover from this.} (27. Bf1 $17) 27... Rh8 $19 {[%emt 0:03:29]} 28. g4 {[%emt 0:01:52]} Rxh7 {[%emt 0:03:04][%csl Gf2][%cal Rh7h2] [#]} 29. Qd6+ {[%emt 0:00:46]} Ke8 {[%emt 0:00:21][%cal Oe6e5] ( -> ...e5!)} 30. gxf5 {[%emt 0:00:17]} Nxf5 {[%emt 0:02:58]} (30... d4 $142 31. Bd3 Qf3+ (31... Nxf5 $2 {too greedy.} 32. Rxe6+ Re7 33. Qc6+ Bd7 34. Qa8+ Kf7 35. Rf1 $18) 32. Kg1 Rg7+ (32... exf5 $2 {perishes.} 33. Qg3 $16) 33. Qg3 Rxg3+ 34. hxg3 Qxg3+ (34... exf5 $2 35. Bf1 $19) 35. Kf1 Qf3+ (35... exf5 $2 36. Re2 $19) 36. Kg1 Bb7 (36... Nxf5 $2 37. Bxf5 Qxf5 38. Re2 $19) (36... exf5 $2 37. Bf1 $19) 37. Be4 Bxe4 38. Rxe4 Qxe4 39. f6 Qg6+ 40. Kh2 Qxc2+ (40... Qxf6 {is a self mate.} 41. Rg1 d3 42. cxd3 Qf4+ 43. Kh3 Nf5 44. Rg6 c2 45. Rg8+ Kf7 46. Rg4 Qf3+ 47. Kh2 Qxg4 48. Kh1 c1=Q+ 49. Kh2 Qh6#) 41. Kh1 Qh7+ 42. Kg2 Qg6+ 43. Kf2 Qxf6+ 44. Ke2 Qe5+ 45. Kf2 Qe3+ 46. Kg2 Nd5 47. Rf1 Nf4+ 48. Rxf4 Qxf4 49. Kh1 c2 50. Kg2 c1=Q 51. Kh3 Qh1#) 31. Qc6+ {[%emt 0:02:12]} Kd8 {[%emt 0:00:12][%csl Gf2][%cal Rh7h2] Black mates.} 32. Bh5 {[%emt 0:01:16]} Ng3+ {[%emt 0:01:16]} 33. hxg3 {[%emt 0:00:04]} Rxh5# {[%emt 0:00:03] Weighted Error Value: White=1.01/Black=0.20 (precise) .  Loses game:     	White=1     	---        Mistake:       	White=3     	---        Inaccurate:     	White=3     	Black=3      OK:         	White=6     	Black=7      Best:        	White=2     	Black=4} 0-1